Cogmind - Beta 9.2 *** ADVENTURER MODE // 2019.12.08 @ 00:37:27 Player: darkcoleague Result: Self-destructed Performance ------------- Evolutions (1) 500 Regions Visited (2) 400 Robots Destroyed (23) 115 Value Destroyed (310) 310 Prototype IDs (2) 40 Alien Tech Used (0) 0 Bonus (0) 0 TOTAL SCORE: 1365 Bonus ------- None Cogmind --------- Core Integrity 334/400 Matter 168/300 Energy 125/125 System Corruption 1% Temperature Cool (8) Movement Treading (160) Location -9/Materials Parts ------- > --- POWER (1) -------- Light Ion Engine > --- PROPULSION (2) --- Improved Treads Improved Treads > --- UTILITY (4) ------ Targeting Computer Medium Armor Plating Shield Generator > --- WEAPON (2) ------- Assault Rifle Assault Rifle > --- INVENTORY (4) ---- Signal Interpreter Weapon Shielding Peak State ------------ > --- POWER ------------ Light Ion Engine > --- PROPULSION ------- Improved Treads Improved Treads > --- UTILITY ---------- Targeting Computer Improved Targeting Computer Medium Armor Plating Shield Generator > --- WEAPON ----------- Assault Rifle Assault Rifle > --- INVENTORY -------- Signal Interpreter Weapon Shielding [Rating: 14] Favorites ----------- Power Light Ion Engine Engine Light Ion Engine Propulsion Light Treads Treads Light Treads Utility Terrain Scanner Device Terrain Scanner Storage Small Storage Unit Processor Targeting Computer Protection Medium Armor Plating Weapon Assault Rifle Energy Gun Medium Laser Ballistic Gun Assault Rifle Build | -11 -10 -9 ------- Run | Scr Mat Mat Slots Evolved 2 | . . 2 Power . | . . . Propulsion . | . . . Utility 2 | . . 2 Weapon . | . . . Parts Attached 27 | 6 17 4 Power 5 | 1 4 . Engine 5 | 1 4 . Core . | . . . Reactor . | . . . Propulsion 7 | 2 5 . Treads 7 | 2 5 . Leg . | . . . Wheel . | . . . Hover . | . . . Flight . | . . . Utility 7 | 1 2 4 Device 2 | . 1 1 Storage 1 | 1 . . Processor 2 | . 1 1 Hackware . | . . . Protection 2 | . . 2 Artifact . | . . . Weapon 8 | 2 6 . Energy Gun 2 | 2 . . Energy Cannon . | . . . Ballistic Gun 6 | . 6 . Ballistic Cannon . | . . . Launcher . | . . . Special Weapon . | . . . Impact Weapon . | . . . Slashing Weapon . | . . . Piercing Weapon . | . . . Special Melee Weapon . | . . . Unidentified Prototypes . | . . . Parts Lost 1 | . . 1 Power . | . . . Propulsion . | . . . Utility 1 | . . 1 Weapon . | . . . Highest Loss Streak 1 | . . 1 Average Slot Usage (%) 95 | . 94 98 Engine 13 | . 14 11 Treads 26 | . 27 22 Device 9 | . 9 9 Storage 5 | . 6 . Processor 8 | . 7 15 Protection 3 | . . 18 Energy Gun 2 | . 2 . Ballistic Gun 24 | . 24 22 Naked Turns . | . . . Heaviest Build 16 | 13 14 16 Greatest Support 46 | 40 46 46 Greatest Overweight (x) 3 | . 3 . Average Overweight (x) . | . . . Largest Inventory Capacity 6 | 6 6 4 Average Capacity 4 | 4 4 4 Most Carried 4 | . 4 3 Average Carried 1 | . 1 1 Final Capacity 6 | 6 4 4 Final Carried 4 | . 4 2 Class Distribution -------------------- 100% | Mutant Dominant Class ---------------- Mutant | -10/Materials Mutant | -9/Materials Resources | -11 -10 -9 ----------- Run | Scr Mat Mat Matter Collected 603 | 208 353 42 Remotely . | . . . Salvage Created 532 | . 451 81 Parts 52 | . 48 4 Haulers Intercepted 2 | . 2 . Recyclers Shooed . | . . . Parts Field Recycled . | . . . Retrieved Matter . | . . . Parts Self-Destructed . | . . . Prevented . | . . . Kills | -11 -10 -9 ------- Run | Scr Mat Mat Combat Hostiles Destroyed 16 | . 14 2 Guns 15 | . 13 2 AOE 1 | . 1 . Classes Destroyed 5 | . 5 . Worker 2 | . 2 . Hauler 2 | . 2 . Watcher 3 | . 3 . Swarmer 12 | . 12 . Grunt 4 | . 2 2 Best Kill Streak 7 | . 7 2 Combat Bots Only 6 | . 6 2 Max Kills in Single Turn 1 | . 1 1 Gunslinging . | . . . Exploded 1 | . 1 . Melee . | . . . Uniques/NPCs Destroyed . | . . . Combat | -11 -10 -9 -------- Run | Scr Mat Mat Damage Taken 506 | . 216 290 Core 109 | . 43 66 Absorbed by Shields 43 | . . 43 Core Remaining (%) 91 | 100 82 . Volleys Fired 53 | . 39 14 Largest 2 | . 2 2 Hottest 90 | . 90 40 Shots Fired 105 | . 77 28 Gun 105 | . 77 28 Cannon . | . . . Launcher . | . . . Special . | . . . Kinetic 90 | . 62 28 Thermal 7 | . 7 . Explosive . | . . . Electromagnetic 8 | . 8 . Robot Hit Streak 25 | . 14 25 Robot Miss Streak 1 | . 1 1 Penetration Max . | . . . Secondary Targets 4 | . 4 . Max Gunslinging Chain 1 | . 1 . Shots Hit Robots 86 | . 59 27 Core Hits 32 | . 27 5 Critical Hits . | . . . Critical Kills . | . . . Critical Parts Destroyed . | . . . Melee Attacks . | . . . Impact . | . . . Slashing . | . . . Piercing . | . . . Sneak Attacks . | . . . Combat Hostiles . | . . . Follow-up Attacks . | . . . Damage Inflicted 1090 | . 744 346 Guns 1016 | . 670 346 Cannons . | . . . Explosions 74 | . 74 . Melee . | . . . Ramming . | . . . Kinetic 838 | . 492 346 Thermal 160 | . 160 . Explosive . | . . . Electromagnetic 92 | . 92 . Impact . | . . . Slashing . | . . . Piercing . | . . . Highest Corruption 1 | . . 1 Average Corruption 1 | . . 1 Corruption Purged . | . . . Effects 1 | . . 1 Data Loss (minor) 1 | . . 1 Overload Shots . | . . . Overflow Damage . | . . . Projectiles . | . . . Explosions . | . . . Melee . | . . . Knockbacks . | . . . Impact . | . . . Kinetic . | . . . Secondary . | . . . Self-Inflicted Damage . | . . . Shots . | . . . Rammed . | . . . Targets Rammed . | . . . Kicked . | . . . Crushed . | . . . Highest Temperature 138 | . 138 8 Average Temperature 48 | . 51 4 Received Heat Transfer 155 | . 18 137 Siege Activations . | . . . Robots Corrupted . | . . . Combat Hostiles . | . . . Parts Fried . | . . . Impact Corruptions . | . . . Robots Melted . | . . . Combat Hostiles . | . . . Parts Melted . | . . . Heat Transferred 409 | . 409 . Parts Sabotaged . | . . . Parts Stolen . | . . . Parts Stripped . | . . . Power Chain Reactions 1 | . 1 . Missiles Intercepted . | . . . Alert | -11 -10 -9 ------- Run | Scr Mat Mat Peak Influence 317 | . 317 81 Average Influence 97 | . 113 51 Maximum Alert Level 1 | . 1 . Low Security (%) 89 | 100 86 100 Level 1 10 | . 13 . Level 2 . | . . . Level 3 . | . . . Level 4 . | . . . Level 5 . | . . . High Security . | . . . Max Security . | . . . Squads Dispatched . | . . . Investigation . | . . . Extermination . | . . . Reinforcement . | . . . Assault . | . . . Garrison . | . . . Intercept . | . . . Construction Impeded . | . . . Haulers Reinforced . | . . . Stealth | -11 -10 -9 --------- Run | Scr Mat Mat Distress Signals . | . . . Communications Jammed . | . . . Distress Signals . | . . . Times Spotted 24 | . 19 5 Peak Tracking Total 3 | . 3 3 Tactical Retreats . | . . . Traps | -11 -10 -9 ------- Run | Scr Mat Mat Traps Triggered 5 | . 4 1 Indirectly . | . . . Trap Hack Attempts . | . . . Triggered . | . . . Disarmed . | . . . Reprogrammed . | . . . Reused . | . . . Traps Extracted . | . . . Installed . | . . . Triggered . | . . . Machines | -11 -10 -9 ---------- Run | Scr Mat Mat Machines Disabled . | . . . Max in Single Turn . | . . . Machines Sabotaged . | . . . Garrisons Compromised . | . . . Overloaded Fab Kills . | . . . Fab Network Shutdowns . | . . . Hacking | -11 -10 -9 --------- Run | Scr Mat Mat Machines Accessed 8 | . 7 1 Terminals 8 | . 7 1 Fabricators . | . . . Repair Stations . | . . . Recycling Units . | . . . Scanalyzers . | . . . Garrison Access . | . . . Total Hacks 22 | . 20 2 Successful 20 | . 18 2 Failed 2 | . 2 . Catastrophic . | . . . Database Lockouts . | . . . Manual . | . . . Terminals 22 | . 20 2 Fabricators . | . . . Repair Stations . | . . . Recycling Units . | . . . Scanalyzers . | . . . Garrison Access . | . . . Terminal Hacks 20 | . 18 2 Record 11 | . 10 1 Prototype ID Bank 1 | . 1 . Terminal Index 1 | . 1 . Alert Level 1 | . 1 . Dispatch Records 1 | . 1 . Maintenance Status 1 | . 1 . Hauler Manifests 2 | . 1 1 Zone Layout 2 | . 2 . Fabricator Hacks . | . . . Repair Station Hacks . | . . . Recycling Unit Hacks . | . . . Scanalyzer . | . . . Garrison Access Hacks . | . . . Unauthorized Hacks . | . . . Terminals . | . . . Fabricators . | . . . Repair Stations . | . . . Recycling Units . | . . . Scanalyzers . | . . . Garrison Access . | . . . Data Cores Recovered . | . . . Used . | . . . Hacking Detections 4 | . 4 . Full Trace Events 1 | . 1 . Feedback Events . | . . . Feedback Blocked . | . . . Robot Schematics Acquired . | . . . Robots Built . | . . . Matter . | . . . Time . | . . . Total Robot Build Rating . | . . . Part Schematics Acquired . | . . . Parts Built . | . . . Matter . | . . . Time . | . . . Total Part Build Rating . | . . . Parts Repaired . | . . . Time . | . . . Parts Recycled . | . . . Recycled Matter . | . . . Retrieved Matter . | . . . Retrieved Components . | . . . Parts Scanalyzed . | . . . Part Schematics Acquired . | . . . Parts Damaged . | . . . Bothacking | -11 -10 -9 ------------ Run | Scr Mat Mat Used RIF Installer . | . . . Robots Hacked . | . . . Non-combat . | . . . Combat . | . . . Robot Hacks Applied . | . . . Relay Couplers Released . | . . . Robots Rewired . | . . . Allies Hacked . | . . . Hacks Repelled . | . . . Allies | -11 -10 -9 -------- Run | Scr Mat Mat Total Allies . | . . . Largest Group . | . . . Highest-Rated Group . | . . . Highest-Rated Ally . | . . . Total Orders . | . . . Ally Attacks . | . . . Total Damage . | . . . Kills . | . . . Allies Corrupted . | . . . Allies Melted . | . . . Intel | -11 -10 -9 ------- Run | Scr Mat Mat Robot Analysis Total . | . . . Derelict Logs Recovered . | . . . Drone Launches . | . . . Drone Recoveries . | . . . Exploration | -11 -10 -9 ------------- Run | Scr Mat Mat Turns Passed 1372 | 67 1085 220 Spaces Moved 728 | 39 583 106 Core 9 | 3 6 . Treads 719 | 36 577 106 Legs . | . . . Wheels . | . . . Hover . | . . . Flight . | . . . Fastest Speed 50 | 50 100 160 Average Speed 159 | 151 159 160 Slowest Speed 200 | 160 200 160 Overloaded Moves . | . . . Propulsion Burnouts . | . . . Robots Hopped . | . . . Cave-ins Triggered . | . . . Exploration Rate (%) 33 | 4 86 11 Regions Visited 2 Branch Regions . Pre-discovered Areas . | . . . Known Exits Taken . | . . . Unknown Exits Taken 2 | 1 1 . Scrap Searched . | . . . Spaces Dug . | . . . Terrain Destroyed 6 | . 6 . Melee . | . . . Projectile . | . . . AOE 6 | . 6 . Actions | -11 -10 -9 --------- Run | Scr Mat Mat Total 826 | 44 654 128 Wait 2 | . 2 . Move 726 | 38 582 106 Hop . | . . . Pick Up 9 | . 7 2 Fast Attach 16 | 6 10 . Attach 2 | . . 2 Detach . | . . . Swap 9 | . 7 2 Drop 9 | . 7 2 Fire 53 | . 39 14 Melee . | . . . Ram . | . . . Kick . | . . . Crush . | . . . Escape Stasis . | . . . Rewire . | . . . Trap . | . . . Miscellaneous . | . . . Route ------- -11/Scrapyard -10/Materials (discovered 4 exits: *Mat x3 / [*Min]) -9/Materials History --------- Turn | Location | Event 2 | -11/Scrapyard | Met Revision 17 6 | -11/Scrapyard | Discovered new exit (range 15) 68 | -11/Scrapyard | Entered Materials 313 | -10/Materials | Build established: Mutant 548 | -10/Materials | Discovered new exit (range 12) 824 | -10/Materials | Discovered new exit (range 11) 853 | -10/Materials | Discovered new exit (range 9) 1030 | -10/Materials | Discovered new exit (range 3) 1153 | -10/Materials | Entered another Materials area 1153 | -9/Materials | Evolved 2 slots: Utility x2 1373 | -9/Materials | Self-destructed Last Messages --------------- 01241_ EMP Trap short circuited. 01241_ A bubble of electromagnetic force engulfs the area. 01262_ Acquired Imp. Targeting Computer. 01264_ Dropped Terrain Scanner. 01297_ System corrupted: Component data lost. 01297_ Acquired Shield Generator. 01328_ C-30 ARC bursts open, deploying its payload. 01328_ L-31 Rogue unfolds itself. 01328_ G-34 Mercenary unfolds itself. 01340_ Imp. Targeting Computer destroyed. 01341_ Destroyed Imp. Ion Engine. 01343_ L-31 Rogue destroyed. 01344_ Acquired 42 matter. 01350_ K-01 Serf collects debris. 01358_ Destroyed Sml. Laser. 01358_ G-34 Mercenary destroyed. 01358_ K-01 Serf collects debris. 01370_ G-34 Mercenary destroyed. 01371_ R-06 Scavenger collects Aluminum Leg. 01371_ K-01 Serf collects debris. Map ----- +----------------------------------------------------+ | ??????????????########### #????#?????? | | ???????????????#????????# #??#???????? | | ????????????????????????# #??????????? | | ????????????############# #?#????????? | | ???????????? #??????????? | | ???????????? #????????#?? | | ???????????? #??????????? | | ?????????????############ #??????????? | | ????????????????# ! / #??????????? | | ????????????????# !* # #??????????? | | ????????????????# *[ # #??????????? | | ????????????????######### #??????????? | | ?????????????????######## #??????????? | | ?????????????????# # t #??????????? | | ?????????????????# # #??????????? | | ?????????????????#""" + #??????????? | | ?????????????????#""" # #??????????? | | ?????????????????#""" # #??????????? | | ?????????????????# # #??????????? | | ?????????????????######## #??????????? | | ????????????????????????# #??????????? | | ???????????????????"????# #??????????? | | ????????????????????????#k #??????????? | | ????????????????????????# #??????????? | | ????????????????????????#r #??????????? | | ????????????????????????#@!%#??????????? | | ????????????????????????#== #??????????? | | ????????????????????????# %=#??????????? | | ????????????????????????#gg #??????????? | | ????????????????????????# #??????????? | | ???????????????????????? #??????????? | | ???????????????????????? % +??????????? | | ????????????????????????"" #??????????? | | ????????????????????????"" #??????????? | | ????????????????????????"" #??????????? | | ???????????????????????? #??????????? | | ?????????????????????????? #??????????? | | ?????????????????????????? #??????????? | | ?????????????????????????? #??????????? | | ??????????????????????????^ #??????????? | | ???????????????????????????##??????????? | | ???????????????????????????????????????? | | ???????????????????????????????????????? | | ???????????????????????????????????????? | | ???????????????????????????????????????? | | ???????????????????????????????????????? | | ???????????????????????????????????????? | | ???????????????????????????????????????? | | ???????????????????????????????????????? | | ???????????????????????????????????????? | +----------------------------------------------------+ Best States ------------- Heat Dissipation 28 Energy Generation 10 Energy Capacity 250 Matter Stores 300 Matter Capacity 300 Sight Range 16 Terrain Scan Range 14 Terrain Scan Density 10 Armor Coverage 225 Resistance: KI 20 Resistance: TH 20 Resistance: EX 20 Resistance: EM 20 Resistance: I 20 Resistance: S 20 Resistance: P 20 Weapon Shielding 33 Evasion (%) 40 Targeting Accuracy 11 Recoil Reduction 2 Item Schematics ----------------- None Robot Schematics ------------------ None Fabricated ------------ Nothing Alien Tech Used ----------------- None Achievements -------------- Shopping List Challenges ------------ None Game ------ Seed MyomerNovaModule Manual? 0 Play Time 00:21:25 Cumulative 9.6 hours Start 2019.12.08 @ 00:13:49 End 2019.12.08 @ 00:37:27 Sessions 2 Manual Loads 0 Difficulty Adventurer Special Mode None Game No. 25 Rogue 23 Adventurer 2 Explorer 0 Win Type - Total 0 Types 0/0/0/0/0/0/0 Lore% 5 Gallery% 16 Achievement% 6 Wizard Run 0 Options --------- ASCII 0 Keyboard 0 Movement Mouse Keybinds 0 Fullscreen 1 Font 18/SmallcapsGlow Map View 76x50 Tactical HUD 1 Map Filters NONE Filters NONE Steam 1 RUN: 2cd9310b-37d9-4761-8f4d-6285a6ced2e4